bitfinex/quotes_BTCUSD_20250313
["timestamp","ask_amount","ask_price","bid_price","bid_amount"]
[1741873291339,0.012093,82687.0,82682.0,1.5]
[1741873291549,0.012093,82691.0,82685.0,0.241879]
[1741873291750,0.253964,82689.0,82683.0,0.012094]
[1741873291970,0.012094,82685.0,82682.0,1.5]
[1741873292219,0.01894741,82688.0,82683.0,0.241887]
[1741873292425,0.01894741,82688.0,82686.0,0.241878]
[1741873292636,0.0003382,82690.0,82689.0,0.012093]
[1741873292805,0.0003382,82690.0,82689.0,0.13300305]
[1741873293213,0.0003382,82690.0,82689.0,0.13179399]
[1741873293417,0.0003382,82690.0,82689.0,0.54970307]
[1741873293623,0.0003382,82690.0,82689.0,0.54849399]
[1741873293830,0.0463,82737.0,82697.0,0.253938]
[1741873293831,6e-07,82698.0,82697.0,0.253938]
[1741873294024,1e-06,82715.0,82714.0,0.253886]
[1741873294235,1e-06,82715.0,82714.0,0.79028699]
[1741873295344,1e-06,82715.0,82714.0,0.78928699]
[1741873295948,0.001001,82715.0,82714.0,0.4187]
[1741873296134,0.254884,82715.0,82714.0,0.4187]
[1741873296357,0.253884,82715.0,82714.0,0.4167]
[1741873296551,0.253884,82715.0,82714.0,0.4187]
[1741873296802,0.001001,82715.0,82714.0,0.4187]
[1741873297007,1e-06,82715.0,82714.0,0.4217]
[1741873297317,0.001001,82715.0,82714.0,0.435789]
[1741873297524,0.002001,82715.0,82714.0,0.435789]
[1741873297727,0.001001,82715.0,82714.0,0.430789]
[1741873298038,0.002001,82715.0,82714.0,0.55548999]
[1741873298375,0.002001,82715.0,82714.0,0.435789]
[1741873298859,0.002001,82715.0,82714.0,0.55548999]
[1741873299285,0.000338,82731.0,82722.0,0.012088]
[1741873299478,0.000338,82731.0,82730.0,0.253837]
[1741873299677,0.000338,82731.0,82730.0,0.37353799]
[1741873300573,0.24175,82730.0,82723.0,0.012088]
[1741873300799,0.253837,82730.0,82725.0,0.241764]
[1741873301005,0.253837,82730.0,82718.0,0.241782]
[1741873301006,0.012088,82726.0,82714.0,1.108]
[1741873301246,0.012088,82723.0,82715.0,0.241794]
[1741873301459,0.012088,82725.0,82718.0,0.253874]
[1741873301661,0.012088,82723.0,82718.0,0.012089]
[1741873301869,0.012088,82723.0,82714.0,0.670585]
[1741873301870,0.253883,82715.0,82714.0,0.4167]
[1741873302075,0.012089,82714.0,82706.0,0.012091]
[1741873302280,0.012089,82715.0,82708.0,0.01209]
[1741873302482,0.012089,82715.0,82705.0,0.012091]
[1741873302483,0.01209,82711.0,82705.0,0.253913]
[1741873302656,0.01209,82710.0,82702.0,0.012091]
[1741873302879,0.012091,82703.0,82698.0,0.4167]
[1741873303082,0.253931,82700.0,82698.0,0.4167]
[1741873303274,0.012093,82692.0,82682.0,0.253983]
[1741873303484,0.012093,82692.0,82680.0,0.4167]
[1741873303485,0.253974,82686.0,82680.0,0.4167]
[1741873303688,0.012094,82684.0,82680.0,0.4167]
[1741873303890,0.012094,82681.0,82672.0,0.254012]
[1741873304131,0.241896,82680.0,82673.0,0.012095]
[1741873304350,0.254014,82673.0,82667.0,0.0001691]
[1741873304552,0.012094,82680.0,82673.0,0.012095]
[1741873304760,0.3,82687.0,82675.0,0.012095]
[1741873304761,0.012094,82683.0,82675.0,0.012095]
[1741873304961,0.241909,82676.0,82669.0,0.012096]
[1741873305184,0.241911,82675.0,82669.0,0.254022]
[1741873305564,0.241919,82673.0,82667.0,0.2541981]
[1741873305720,0.254014,82673.0,82668.0,0.012096]
[1741873305926,0.254013,82673.0,82668.0,0.012096]
[1741873306130,0.012095,82673.0,82667.0,0.0001691]
[1741873306357,0.241919,82672.0,82667.0,0.0001691]
[1741873306704,0.012095,82673.0,82667.0,0.0001691]
[1741873306913,0.012096,82668.0,82667.0,0.0001691]
[1741873307122,0.012095,82673.0,82667.0,0.0001691]
[1741873307123,0.1788,82688.0,82676.0,0.012095]
[1741873307323,0.012094,82682.0,82676.0,0.241907]
[1741873307454,0.012094,82682.0,82677.0,0.253997]
[1741873307664,0.012094,82682.0,82676.0,0.241908]
[1741873307665,0.253985,82682.0,82676.0,0.241908]
[1741873307881,0.012094,82683.0,82677.0,0.253997]
[1741873308089,0.253981,82684.0,82679.0,0.012094]
[1741873308289,0.012093,82687.0,82680.0,0.012094]
[1741873308647,0.012092,82694.0,82671.0,0.24192]
[1741873308648,0.24191,82676.0,82671.0,0.24192]
[1741873308968,0.253988,82681.0,82676.0,0.012095]
[1741873309171,0.241893,82681.0,82675.0,0.012095]
[1741873309398,0.012093,82691.0,82681.0,0.012094]
[1741873309593,0.01197602,82709.0,82655.0,0.02432695]
[1741873309594,0.17856,82701.0,82693.0,0.012092]
[1741873309805,0.25392,82703.0,82694.0,0.241855]
[1741873310015,0.253926,82702.0,82695.0,0.24185]
[1741873310233,0.0189457,82699.0,82695.0,0.24185]
[1741873310417,0.0189457,82699.0,82693.0,0.011092]
[1741873310652,0.0189457,82699.0,82694.0,0.012092]
[1741873310817,0.0189457,82699.0,82698.0,0.253935]
[1741873311033,0.0189457,82699.0,82698.0,0.012092]
[1741873311242,0.241757,82728.0,82721.0,0.012088]
[1741873311411,0.10738682,82730.0,82722.0,0.012088]
[1741873311613,0.01894369,82726.0,82722.0,0.012088]
[1741873311900,0.01894369,82726.0,82722.0,0.007368]
[1741873312028,0.10738682,82729.0,82722.0,1.507368]
[1741873312233,0.2540271,82723.0,82722.0,1.5]
[1741873312457,0.0001691,82723.0,82722.0,0.253861]
[1741873312992,0.0001691,82723.0,82722.0,0.37356199]
[1741873313605,0.0001691,82723.0,82722.0,0.37856199]
[1741873314234,0.0001691,82723.0,82722.0,0.37356199]
[1741873314633,0.0001691,82723.0,82722.0,0.37856199]
[1741873314784,0.0001691,82723.0,82722.0,0.38256199]
[1741873314990,0.0001691,82723.0,82722.0,0.253861]
[1741873315228,0.0001691,82723.0,82722.0,0.258861]
[1741873315435,0.0001691,82723.0,82722.0,0.005]
[1741873315634,0.0001691,82723.0,82720.0,0.241778]
[1741873315844,0.0001691,82723.0,82722.0,0.253861]
[1741873316055,0.0001691,82723.0,82719.0,0.012089]
[1741873316396,0.0001691,82723.0,82717.0,0.17756]
[1741873316532,0.0001691,82723.0,82722.0,0.018088]
[1741873316726,0.0001691,82723.0,82722.0,0.13899778]
[1741873317315,0.0001691,82723.0,82722.0,0.55569778]
[1741873317316,1e-07,82723.0,82722.0,0.55569778]
[1741873317486,1e-07,82723.0,82722.0,1.25178899]
[1741873317706,1e-07,82723.0,82722.0,1.23978899]
[1741873318028,1e-07,82723.0,82722.0,1.24378899]
[1741873318235,1e-07,82723.0,82722.0,1.23978899]
[1741873318679,1e-07,82723.0,82722.0,1.24578899]
[1741873318884,1e-07,82723.0,82722.0,1.23978899]
[1741873319293,1e-07,82723.0,82722.0,1.24278899]
[1741873319494,1e-07,82723.0,82722.0,0.55148899]
[1741873319701,0.0003384,82748.0,82747.0,0.253785]
[1741873319910,0.0003384,82748.0,82747.0,0.37348599]
[1741873320144,0.0003384,82748.0,82747.0,0.80472674]
[1741873320346,0.0003384,82748.0,82747.0,0.79018589]
[1741873320778,0.0003384,82748.0,82747.0,2.29018589]
[1741873321611,0.0003384,82748.0,82747.0,2.29218589]
[1741873321792,0.0003384,82748.0,82747.0,2.29618589]
[1741873322095,0.0003384,82748.0,82747.0,2.29218589]
[1741873322292,0.0003384,82748.0,82747.0,2.29818589]
[1741873322693,0.0003384,82748.0,82747.0,2.29218589]
[1741873322899,0.0003384,82748.0,82747.0,2.29018589]
[1741873323308,0.0003384,82748.0,82747.0,2.29618589]
[1741873323850,0.0003384,82748.0,82747.0,2.29018589]
[1741873324257,4e-07,82748.0,82747.0,3.00702674]
[1741873324431,4e-07,82748.0,82747.0,3.00202674]
[1741873324662,4e-07,82748.0,82747.0,2.98148589]
[1741873324828,4e-07,82748.0,82747.0,2.98648589]
[1741873325056,4e-07,82748.0,82747.0,3.00202674]
[1741873325306,4e-07,82773.0,82763.0,0.26827585]
[1741873325307,4e-07,82764.0,82763.0,0.26827585]
[1741873325470,4e-07,82764.0,82763.0,0.56681684]
[1741873326249,4e-07,82764.0,82763.0,0.55227599]
[1741873326699,4e-07,82764.0,82763.0,0.432575]
[1741873326911,4e-07,82764.0,82763.0,0.55227599]
[1741873327240,4e-07,82764.0,82763.0,0.432575]
[1741873327542,4e-07,82764.0,82763.0,0.17884]
[1741873327757,4e-07,82764.0,82763.0,0.438575]
[1741873327959,4e-07,82764.0,82763.0,0.444575]
[1741873328169,4e-07,82764.0,82763.0,0.55227599]
[1741873328640,4e-07,82764.0,82763.0,0.55727599]
[1741873328810,4e-07,82764.0,82763.0,0.18384]
[1741873329012,4e-07,82764.0,82763.0,0.30354099]
[1741873329256,4e-07,82764.0,82763.0,0.31562299]
[1741873329736,4e-07,82764.0,82763.0,0.190922]
[1741873329939,4e-07,82764.0,82763.0,0.31662299]
[1741873330211,4e-07,82764.0,82763.0,0.73332249]
[1741873330422,4e-07,82764.0,82763.0,0.72732249]
[1741873330623,4e-07,82764.0,82763.0,1.43916334]
[1741873330810,4e-07,82764.0,82763.0,2.93916334]
[1741873331254,4e-07,82764.0,82763.0,2.94416334]
[1741873331458,4e-07,82764.0,82763.0,2.93916334]
[1741873331661,4e-07,82764.0,82763.0,2.92462249]
[1741873332037,4e-07,82764.0,82763.0,3.07132324]
[1741873332237,0.0003384,82781.0,82763.0,3.07132324]
[1741873332238,5e-07,82779.0,82778.0,0.25369]
[1741873332473,5e-07,82779.0,82778.0,0.79009009]
[1741873332614,5e-07,82779.0,82778.0,0.80463094]
[1741873333018,5e-07,82779.0,82778.0,2.30463094]
[1741873333200,0.0001691,82806.0,82778.0,2.30463094]
[1741873333201,1e-07,82797.0,82790.0,0.253653]
[1741873333397,2e-07,82798.0,82797.0,0.07621785]
[1741873333603,2e-07,82798.0,82797.0,0.18258529]
[1741873333901,2e-07,82798.0,82797.0,0.1825854]
[1741873334827,2e-07,82798.0,82797.0,0.18737799]
[1741873335062,2e-07,82798.0,82797.0,0.2031263]
[1741873335263,2e-07,82798.0,82797.0,0.20312616]
[1741873335465,2e-07,82798.0,82797.0,0.19458535]
[1741873335672,2e-07,82798.0,82797.0,0.13170099]
[1741873335963,0.0120772,82798.0,82797.0,0.006]
[1741873336140,2e-07,82798.0,82792.0,0.253645]
[1741873336337,2e-07,82798.0,82797.0,0.259631]
[1741873336537,2e-07,82798.0,82797.0,0.37933199]
[1741873336742,2e-07,82798.0,82797.0,0.79003109]
[1741873336922,0.01207,82845.0,82834.0,0.012072]
[1741873337128,0.01891891,82826.0,82822.0,0.012074]
[1741873337326,0.01891891,82826.0,82822.0,0.253553]
[1741873337665,0.012073,82827.0,82822.0,0.253553]
[1741873337878,0.01891658,82826.0,82825.0,0.012073]
[1741873338126,0.0484,82859.0,82825.0,0.012073]
[1741873338127,0.01207,82848.0,82840.0,0.012071]
[1741873338243,0.01207,82845.0,82837.0,0.012071]
[1741873338445,0.012071,82841.0,82836.0,0.4166991]
[1741873338717,0.253509,82837.0,82836.0,0.4166991]
[1741873339896,0.253509,82837.0,82813.0,0.012075]
[1741873339897,0.012075,82812.0,82811.0,0.4166991]
[1741873340109,0.012074,82817.0,82811.0,0.53640009]
[1741873340307,0.012074,82819.0,82812.0,0.012075]
[1741873340524,0.012074,82818.0,82812.0,0.253585]
[1741873340731,0.01891709,82816.0,82814.0,0.253579]
[1741873340949,0.01891709,82816.0,82812.0,1.5]
[1741873341282,0.01891709,82816.0,82815.0,0.253577]
[1741873341462,0.01891709,82816.0,82815.0,0.37327799]
[1741873341675,0.012071,82840.0,82836.0,0.001]
[1741873341845,0.253509,82837.0,82836.0,0.001]
[1741873342048,0.0189155,82840.0,82836.0,0.001]
[1741873342246,0.000169,82837.0,82836.0,0.6712111]
[1741873342447,0.000169,82837.0,82836.0,1.3625111]
[1741873342643,0.000169,82837.0,82836.0,1.49413221]
[1741873342845,0.000169,82837.0,82836.0,1.50867306]
[1741873343052,0.000169,82837.0,82836.0,1.49313221]
[1741873343462,0.000169,82837.0,82836.0,1.67493221]
[1741873344047,0.000169,82837.0,82836.0,1.66285209]
[1741873344247,0.000169,82837.0,82836.0,1.66885209]
[1741873344727,0.000169,82837.0,82836.0,1.66485209]
[1741873345135,0.000169,82837.0,82836.0,1.67085209]
[1741873345396,0.000169,82837.0,82836.0,1.41134009]
[1741873345771,0.253678,82837.0,82836.0,0.4286991]
[1741873346671,0.2725916,82837.0,82836.0,0.4286991]
[1741873346872,0.2725916,82837.0,82836.0,0.4166991]
[1741873347182,0.2725916,82837.0,82836.0,0.4226991]
[1741873347532,0.012074,82820.0,82813.0,0.4287741]
[1741873347726,0.253554,82823.0,82816.0,0.241498]
[1741873347934,0.012074,82821.0,82813.0,0.53640009]
[1741873348165,0.012073,82826.0,82817.0,0.241496]
[1741873348365,0.012074,82817.0,82813.0,0.4166991]
[1741873348543,0.01891602,82822.0,82819.0,0.24149]
[1741873348771,0.01891602,82822.0,82814.0,0.11970099]
[1741873348947,0.03099002,82822.0,82814.0,0.37327799]
[1741873349124,0.012074,82821.0,82814.0,0.11970099]
[1741873349342,0.012074,82821.0,82813.0,0.4206991]
[1741873349343,0.012074,82817.0,82813.0,0.4166991]
[1741873349539,0.25358,82814.0,82813.0,0.4166991]
[1741873349822,0.55358,82814.0,82813.0,0.4216991]
[1741873350037,0.241543,82801.0,82797.0,0.4170371]
[1741873350257,0.253628,82798.0,82797.0,0.000338]
[1741873350685,0.3,82806.0,82801.0,0.012077]
[1741873350912,0.012075,82812.0,82806.0,0.012076]
[1741873351122,0.241511,82812.0,82807.0,0.253599]
[1741873351327,0.005,82845.0,82812.0,0.012075]
[1741873351540,0.005,82845.0,82815.0,0.012075]
[1741873351541,0.253563,82820.0,82815.0,0.012075]
[1741873351747,0.012074,82818.0,82814.0,0.004]
[1741873351948,0.01891896,82819.0,82812.0,0.012075]
[1741873352152,0.01891896,82819.0,82817.0,0.012074]
[1741873352358,0.01891896,82819.0,82813.0,1.5]
[1741873352563,0.01891896,82819.0,82818.0,0.012074]
[1741873352776,0.241458,82831.0,82825.0,0.012073]
[1741873352989,0.012073,82824.0,82819.0,0.012074]
[1741873353193,0.012073,82825.0,82819.0,0.012074]
[1741873353401,0.300169,82837.0,82827.0,0.012073]
[1741873353606,0.012073,82829.0,82819.0,0.13177499]
[1741873353807,0.241464,82828.0,82819.0,0.13177499]
[1741873354007,0.012072,82834.0,82825.0,0.012073]
[1741873354207,0.012072,82831.0,82825.0,0.253543]
[1741873354412,0.012073,82828.0,82823.0,0.241476]
[1741873354627,0.241481,82823.0,82816.0,0.241498]
[1741873354822,0.241495,82818.0,82811.0,0.012075]
[1741873355025,0.012074,82818.0,82812.0,0.253585]
[1741873355232,0.241548,82799.0,82798.0,0.4166991]
[1741873355459,0.012075,82813.0,82805.0,0.012076]
[1741873355667,0.012075,82812.0,82805.0,0.253607]
[1741873355870,0.253566,82819.0,82813.0,0.012075]
[1741873356077,0.012071,82843.0,82830.0,0.012072]
[1741873356287,0.253514,82836.0,82831.0,0.11970099]
[1741873356434,0.27241153,82842.0,82833.0,0.012072]
[1741873356625,0.012071,82839.0,82833.0,0.012072]
[1741873356844,0.012072,82836.0,82830.0,0.4166991]
[1741873357045,0.012072,82831.0,82830.0,0.4166991]
[1741873357958,0.03098706,82831.0,82830.0,0.4166991]
[1741873358394,0.253567,82818.0,82816.0,0.4166991]
[1741873358562,0.012074,82817.0,82812.0,0.241508]
[1741873358736,0.012075,82813.0,82808.0,0.012076]
[1741873359144,0.01891787,82816.0,82814.0,0.253577]
[1741873359320,0.01891787,82816.0,82815.0,0.012075]
[1741873359532,0.01891787,82816.0,82812.0,0.241509]
[1741873359733,0.01891787,82816.0,82815.0,0.012075]
[1741873360305,0.01891787,82816.0,82815.0,0.13177599]
[1741873360854,0.01891787,82816.0,82815.0,1.63177599]
[1741873361418,0.012071,82840.0,82831.0,0.253525]
[1741873361632,0.01224,82837.0,82829.0,0.4166991]
[1741873361852,0.03098794,82830.0,82829.0,0.4166991]
[1741873362267,0.03098794,82830.0,82829.0,1.9166991]
[1741873362468,0.03098794,82830.0,82829.0,1.5]
[1741873362674,0.01891594,82830.0,82829.0,1.5]
[1741873362883,0.241617,82834.0,82829.0,1.5]
[1741873362988,0.012072,82830.0,82829.0,1.5]
[1741873363197,0.012072,82830.0,82814.0,0.012075]
[1741873363198,0.012073,82824.0,82815.0,0.005]
[1741873363405,0.012072,82830.0,82823.0,0.253551]
[1741873363609,0.253554,82823.0,82818.0,0.253565]
[1741873363833,0.253563,82820.0,82812.0,0.012075]
[1741873364035,0.241458,82830.0,82797.0,0.000338]
[1741873364036,0.012076,82807.0,82800.0,0.012077]
[1741873364254,0.253607,82805.0,82797.0,0.000338]
[1741873364453,0.553628,82798.0,82797.0,0.000338]
[1741873364699,0.012077,82798.0,82797.0,0.000338]
[1741873365076,0.012076,82804.0,82797.0,0.000338]
[1741873365077,0.241502,82816.0,82806.0,0.012076]
[1741873365249,0.012075,82812.0,82806.0,0.012076]
[1741873365451,0.241515,82811.0,82805.0,0.012076]
[1741873365649,0.012076,82805.0,82804.0,0.002]
[1741873365852,0.31511056,82805.0,82804.0,0.002]
[1741873366051,0.61511056,82805.0,82804.0,0.002]
[1741873366533,0.553628,82798.0,82797.0,1e-06]
[1741873366735,0.553628,82798.0,82761.0,0.012082]
[1741873366736,0.241619,82775.0,82769.0,0.012081]
[1741873366904,0.01208,82779.0,82772.0,0.012081]
[1741873367148,0.012082,82767.0,82747.0,0.01195362]
[1741873367272,0.253751,82758.0,82751.0,0.012084]
[1741873367474,0.011981,82770.0,82762.0,0.012082]
[1741873367674,0.253747,82760.0,82752.0,0.36138599]
[1741873367930,0.241653,82763.0,82754.0,0.241679]
[1741873368114,0.012082,82762.0,82750.0,0.012084]
[1741873368324,0.241633,82770.0,82759.0,0.241665]
[1741873368526,0.075,82774.0,82755.0,0.241677]
[1741873368527,0.012082,82763.0,82756.0,0.012083]
[1741873368747,0.012082,82766.0,82756.0,0.012083]
[1741873368748,0.012082,82765.0,82762.0,0.003]
[1741873369156,0.253727,82766.0,82762.0,0.003]
[1741873369365,0.012082,82763.0,82762.0,0.003]
[1741873369788,0.01893036,82765.0,82762.0,0.003]
[1741873369789,0.01893036,82765.0,82764.0,0.012082]
[1741873370001,0.01893036,82765.0,82763.0,0.253735]
[1741873370253,0.01893036,82765.0,82764.0,0.13178299]
[1741873370555,0.19810847,82808.0,82798.0,0.241551]
[1741873370803,0.19810847,82808.0,82789.0,0.012078]
[1741873370804,0.01892725,82790.0,82789.0,0.012078]
[1741873371043,0.012077,82800.0,82793.0,0.012078]
[1741873371295,0.012076,82804.0,82798.0,0.241551]
[1741873371551,0.24154,82802.0,82798.0,1.5]
[1741873371806,0.01892358,82799.0,82798.0,1.5]
[1741873372051,0.012078,82789.0,82782.0,0.012079]
[1741873372285,0.012078,82789.0,82781.0,0.241599]
[1741873372286,0.241583,82788.0,82780.0,0.01208]
[1741873372528,0.01892358,82799.0,82791.0,0.012078]
[1741873372740,0.01892358,82799.0,82798.0,0.012077]
[1741873372948,0.003,82800.0,82799.0,0.241548]
[1741873373157,0.003,82800.0,82799.0,0.240548]
[1741873373372,0.012077,82799.0,82789.0,0.012078]
[1741873373542,0.012077,82799.0,82793.0,0.012078]
[1741873373543,0.012077,82798.0,82793.0,0.012078]
[1741873373869,0.012077,82797.0,82791.0,0.253649]
[1741873374005,0.012077,82796.0,82791.0,0.253649]
[1741873374201,0.001,82799.0,82798.0,0.012077]
[1741873374423,0.253631,82798.0,82791.0,0.253649]
[1741873374605,0.001,82799.0,82783.0,0.012079]
[1741873374606,0.012078,82793.0,82783.0,0.012079]
[1741873374804,0.001,82799.0,82795.0,0.241558]
[1741873375162,0.012078,82792.0,82786.0,0.012079]
[1741873375366,0.012078,82792.0,82784.0,0.012079]
[1741873375567,0.253634,82796.0,82790.0,0.012078]
[1741873375827,0.012078,82791.0,82779.0,0.01208]
[1741873376028,0.3,82788.0,82783.0,0.001]
[1741873376156,0.012079,82785.0,82783.0,0.001]
[1741873376362,0.012079,82784.0,82783.0,0.001]
[1741873376570,0.25367,82785.0,82783.0,0.001]
[1741873376996,0.012079,82787.0,82783.0,0.001]
[1741873377226,0.241589,82786.0,82783.0,0.001]
[1741873377427,0.012079,82785.0,82783.0,0.001]
[1741873377597,0.012079,82784.0,82783.0,0.001]
[1741873377800,0.012078,82789.0,82783.0,0.253672]
[1741873378005,0.0001691,82811.0,82777.0,0.01208]
[1741873378006,0.012079,82783.0,82777.0,0.01208]
[1741873378305,0.012079,82786.0,82777.0,0.01208]
[1741873378509,0.241584,82787.0,82772.0,0.241627]
[1741873378510,0.01208,82777.0,82772.0,0.241627]
[1741873378731,0.01208,82776.0,82753.0,0.4166991]
[1741873378939,0.553711,82771.0,82757.0,0.012083]
[1741873379141,0.553711,82771.0,82760.0,0.012083]
[1741873379292,0.553711,82771.0,82759.0,0.241663]
[1741873379502,0.61769494,82771.0,82753.0,0.4166991]
[1741873379703,0.63662505,82771.0,82750.0,0.012084]
[1741873379906,0.6511659,82771.0,82740.0,0.4287851]
[1741873380106,0.63662505,82771.0,82750.0,0.012084]
[1741873380455,0.31893011,82771.0,82752.0,0.012084]
[1741873380679,0.01893011,82771.0,82768.0,0.241639]
[1741873380840,0.01893011,82771.0,82765.0,0.253727]
[1741873381047,0.31893011,82771.0,82753.0,1.9166991]
[1741873381256,0.33101111,82771.0,82753.0,1.9166991]
[1741873381463,0.33101111,82771.0,82736.0,0.00895394]
[1741873381464,0.253815,82737.0,82736.0,0.00895394]
[1741873381666,0.32028137,82737.0,82736.0,0.00895394]
[1741873381868,0.06646637,82737.0,82736.0,0.00895394]
[1741873382074,0.012084,82748.0,82741.0,0.012085]
[1741873382282,0.012086,82738.0,82732.0,0.012087]
[1741873382487,0.253809,82740.0,82734.0,0.012086]
[1741873382692,0.17364,82770.0,82748.0,0.012084]
[1741873382893,0.012084,82750.0,82745.0,0.012085]
[1741873383119,0.241699,82748.0,82740.0,0.012086]
[1741873383345,0.241699,82748.0,82736.0,0.4166991]
[1741873383346,0.241726,82739.0,82736.0,0.4166991]
[1741873383551,0.012087,82732.0,82731.0,0.0003384]
[1741873383755,0.012086,82736.0,82734.0,0.003]
[1741873383756,0.241736,82735.0,82734.0,0.003]
[1741873383954,0.253822,82735.0,82734.0,0.003]
[1741873384156,0.012086,82735.0,82731.0,0.0003384]
[1741873384298,0.241738,82734.0,82731.0,0.0003384]
[1741873384503,0.012086,82739.0,82731.0,0.0003384]
[1741873384504,0.253802,82742.0,82735.0,0.253818]
[1741873384704,0.3,82752.0,82736.0,0.012086]
[1741873384908,0.241694,82749.0,82741.0,0.012085]
[1741873385168,0.253788,82747.0,82738.0,0.012086]
[1741873385385,0.253791,82745.0,82740.0,0.241718]
[1741873385523,0.012086,82739.0,82732.0,0.012087]
[1741873385733,0.253831,82732.0,82731.0,0.0033384]
[1741873385948,0.012086,82739.0,82732.0,0.012087]
[1741873386152,0.012087,82733.0,82731.0,0.0003384]
[1741873386335,0.012086,82736.0,82734.0,0.002]
[1741873386536,0.01893613,82738.0,82736.0,0.012086]
[1741873386781,0.01893613,82738.0,82737.0,0.012086]
[1741873387153,0.01893613,82738.0,82732.0,0.241741]
[1741873387154,0.01893613,82738.0,82731.0,0.0033384]
[1741873387359,0.01893613,82738.0,82734.0,0.241738]
[1741873387554,0.01893613,82738.0,82731.0,0.0033384]
[1741873387555,0.012086,82735.0,82731.0,0.0003384]
[1741873387832,0.312087,82732.0,82731.0,0.0003384]
[1741873388003,0.37891861,82732.0,82731.0,0.0003384]
[1741873388240,0.49485088,82732.0,82731.0,4e-07]
[1741873388451,0.39345946,82732.0,82731.0,4e-07]
[1741873388855,0.553883,82715.0,82714.0,0.000338]
[1741873389062,0.62195674,82715.0,82714.0,0.000338]
[1741873389713,0.57282525,82715.0,82714.0,0.000338]
[1741873389924,0.64089899,82715.0,82714.0,0.000338]
[1741873390308,0.65543984,82715.0,82714.0,0.000338]
[1741873390484,0.65643984,82715.0,82714.0,0.000338]
[1741873390685,0.64189899,82715.0,82714.0,0.000338]
[1741873390939,0.64089899,82715.0,82714.0,0.000338]
[1741873391150,0.64189899,82715.0,82714.0,0.000338]
[1741873391497,0.64089899,82715.0,82714.0,0.000338]
[1741873391702,0.64189899,82715.0,82714.0,0.000338]
[1741873392384,0.01994225,82715.0,82714.0,0.001338]
[1741873392789,0.10010499,82715.0,82714.0,0.000338]
[1741873393168,0.09910499,82715.0,82714.0,0.001338]
[1741873394105,0.10110499,82715.0,82714.0,0.001338]
[1741873394284,0.002,82715.0,82714.0,0.001338]
[1741873394419,0.779368,82724.0,82718.0,0.012089]
[1741873394623,0.17368,82737.0,82714.0,0.000338]
[1741873394624,0.012087,82728.0,82714.0,0.242131]
[1741873394838,0.012088,82722.0,82717.0,0.241788]
[1741873395301,0.012088,82720.0,82714.0,0.000338]
[1741873395453,0.012087,82729.0,82720.0,0.241779]
[1741873395650,0.91654378,82750.0,82714.0,0.000338]
[1741873395651,0.241788,82717.0,82714.0,0.000338]
[1741873395911,0.001,82724.0,82723.0,0.012088]
[1741873396287,0.553831,82733.0,82726.0,0.253847]
[1741873396525,0.253833,82732.0,82723.0,0.012088]
[1741873396762,0.012085,82742.0,82735.0,0.012086]
[1741873396955,0.012085,82742.0,82732.0,0.012087]
[1741873396956,0.012086,82739.0,82732.0,0.012087]
[1741873397475,0.012087,82729.0,82723.0,0.002]
[1741873397689,0.012088,82725.0,82720.0,0.17316]
[1741873397954,0.241732,82736.0,82730.0,0.241747]
[1741873398210,0.241732,82736.0,82727.0,0.012087]
[1741873398211,0.253824,82734.0,82728.0,0.241753]
[1741873398472,0.253831,82732.0,82727.0,0.012087]
[1741873398741,0.01893752,82733.0,82727.0,0.012087]
[1741873399007,0.01893752,82733.0,82732.0,0.241744]
[1741873399208,0.01893752,82733.0,82732.0,0.253831]
[1741873399391,0.01893752,82733.0,82729.0,0.253837]
[1741873399576,0.241744,82732.0,82723.0,0.002]
[1741873399797,0.01893752,82733.0,82732.0,0.253831]
[1741873400206,0.241747,82731.0,82726.0,0.253848]
[1741873400436,0.012087,82728.0,82720.0,0.012088]
[1741873400668,0.241767,82724.0,82723.0,0.002]
[1741873400884,0.241767,82724.0,82723.0,0.005]
[1741873400885,0.63581193,82724.0,82723.0,0.005]
[1741873401108,0.012088,82721.0,82715.0,0.012089]
[1741873401324,0.241794,82715.0,82714.0,0.000338]
[1741873401536,0.253883,82715.0,82714.0,0.000338]
[1741873402718,0.27282497,82715.0,82714.0,0.000338]
[1741873403059,0.32195674,82715.0,82714.0,0.000338]
[1741873403337,0.72188576,82715.0,82714.0,0.000338]
[1741873403605,0.253966,82688.0,82687.0,0.0003382]
[1741873403984,0.241869,82690.0,82687.0,0.0003382]
[1741873404313,0.32393945,82689.0,82687.0,0.0003382]
[1741873404518,0.012093,82688.0,82687.0,0.0003382]
[1741873404672,0.08214057,82688.0,82687.0,0.0003382]
[1741873404847,0.08214057,82688.0,82687.0,0.0063382]
[1741873405050,0.241867,82690.0,82687.0,0.0113382]
[1741873405255,0.012093,82691.0,82687.0,0.0113382]
[1741873405454,0.012093,82691.0,82687.0,0.0053382]
[1741873405724,0.25396,82690.0,82687.0,0.0053382]
[1741873405926,0.253966,82688.0,82687.0,0.0053382]
[1741873406539,0.253966,82688.0,82687.0,0.0003382]
[1741873406666,0.06997445,82689.0,82687.0,0.0003382]
[1741873406667,0.012093,82689.0,82687.0,0.0003382]
[1741873406871,0.01894685,82691.0,82687.0,0.0053382]
[1741873407070,0.012093,82688.0,82687.0,0.0003382]
[1741873407379,0.312093,82688.0,82687.0,0.0003382]
[1741873407580,0.241873,82688.0,82687.0,0.0033382]
[1741873407781,0.253963,82690.0,82687.0,0.0033382]
[1741873407982,0.012093,82688.0,82687.0,0.0003382]
[1741873408208,0.08214057,82688.0,82687.0,0.0013382]
[1741873408913,0.38214057,82688.0,82687.0,0.0013382]
[1741873409083,0.38214057,82688.0,82687.0,0.0033382]
[1741873409084,0.51418786,82688.0,82687.0,0.0033382]
[1741873409276,0.47968142,82688.0,82687.0,2e-07]
[1741873409672,0.38214057,82688.0,82687.0,2e-07]
[1741873409954,0.39668142,82688.0,82687.0,0.0010002]
[1741873410522,0.39668142,82688.0,82679.0,2e-07]